[Event "CCT Chessable Masters Playoffs 2025"]
[Site "Online"]
[Date "2025.02.18"]
[Round "1"]
[White "Carlsen, Magnus"]
[Black "Esipenko, Andrey"]
[Result "1/2-1/2"]
[Annotator "TA"]
[ECO "B13"]
[WhiteElo "2833"]
[BlackElo "2695"]
[PlyCount "73"]
[EventDate "2025.02.13"]
[EventType "k.o."]
[EventCountry "NET"]
[SourceTitle "playchess.com"]
[Source "ChessBase"]
[SourceQuality "1"]
[TimeControl "600"]

{[%evp 9,73,0,-7,-17,-4,-8,-5,-35,-25,-30,36,27,43,-45,-34,-118,-129,-127,-68,-132,-93,-119,-138,-140,-128,-135,-82,-103,-96,-101,-82,-83,-48,-43,-40,-43,-46,-89,-88,-78,0,-5,0,0,0,0,0,0,0,0,0,0,0,-12,0,-14,0,-8,0,-16,0,-8,0,0,0,-8]} 1. d4 {[%emt 0:00:01]} Nf6 {[%emt 0:00:02]} 2. Nc3 {[%emt 0:00:01]} d5 {[%emt 0:00:01]} 3. Bf4 {[%emt 0:00:00]} c5 {[%emt 0:00:02]} 4. e3 {[%emt 0:00:01]} cxd4 {[%emt 0:00:02]} 5. exd4 {[%emt 0:00:00]} a6 {[%emt 0:00:00]} 6. Nf3 {[%emt 0:00:01] B13: Caro-Kann: Exchange Variation and Panov-Botvinnik Attack.} Nc6 {[%emt 0:00:01]} 7. Ne5 {[%emt 0:00:01]} Bd7 {[%emt 0:00:01]} 8. g4 {[%emt 0:00:01]} h6 {[%emt 0:00:19]} (8... e6 $5) 9. h4 {[%emt 0:00:04]} g6 $146 {[%emt 0:00:09]} (9... Nxe5 10. dxe5 Ne4 (10... Nxg4 11. f3 $16) (10... Bxg4 11. Be2 $14) 11. Nxe4 (11. Nxd5 Bc6 $17) (11. Qxd5 Nxc3 12. bxc3 Qc8 $11) 11... dxe4 12. Bg2 $14) (9... e6 $11) (9... e6 10. Nxc6 Bxc6 11. Qf3 Qa5 12. Bd2 Qb6 13. O-O-O Qxd4 14. g5 hxg5 15. Bxg5 Qg4 16. Qe3 d4 17. Rxd4 Bc5 {0-1 Sadhwani,R (2654)-Sychev,K (2542) Wch Rapid Samarkand 2023 (12)}) 10. Bh3 {[%emt 0:00:49]} Bg7 {[%emt 0:01:06]} 11. Nxd7 {[%emt 0:00:02]} (11. Qd2 $14) 11... Nxd7 $15 {[%emt 0:00:01]} 12. Nxd5 {[%emt 0:00:02] Counterplay Black} ({White should play} 12. Be3 $15) 12... Qa5+ $17 {[%emt 0:00:03]} 13. Nc3 {[%emt 0:00:02] [#]} Nxd4 {[%emt 0:00:11]} ({Better is} 13... Rd8 $1 $17 {[%cal Od7e5]} 14. Bg2 Nxd4) 14. O-O {[%emt 0:00:08] [#]} (14. Be3 $15 Qc5 15. g5) 14... Ne5 $1 {[%emt 0:00:17] Excellent horsemanship.} 15. Bg2 {[%emt 0:00:21][%cal Ob2b4]} (15. Bxe5 Qxe5) 15... Rd8 {[%emt 0:00:03][%cal Od4f3]} 16. Bxe5 {[%emt 0:00:29]} Bxe5 {[%emt 0:00:05]} 17. Re1 {[%emt 0:00:12][%cal Ob2b4]} O-O {[%emt 0:01:29]} (17... h5 $142 18. b4 Qxb4 19. Rxe5 Qxc3) 18. Qd3 {[%emt 0:00:05][%cal Oa1b1]} e6 {[%emt 0:00:26]} 19. Rad1 {[%emt 0:00:56][%cal Oc3e4]} Bg7 {[%emt 0:00:39]} 20. Ne4 {[%emt 0:00:18]} f5 {[%emt 0:00:25]} 21. gxf5 {[%emt 0:00:09]} Nxf5 {[%emt 0:00:04]} (21... gxf5 {simplifies} 22. Nd2 Qxa2 23. c3 Nb5) 22. Qc4 {[%emt 0:00:25]} Nxh4 {[%emt 0:00:07]} 23. Nc5 {[%emt 0:00:58]} Nxg2 {[%emt 0:00:37]} (23... Bxb2 $2 24. Nxe6 (24. Qxe6+ Kh8 $15) 24... Qc3 25. Qxh4 $18 (25. Nxd8+ $2 Qxc4 26. Bd5+ Qxd5 $17)) 24. Kxg2 {[%emt 0:00:04] [#]} Rxd1 {[%emt 0:00:03]} (24... Bxb2 25. Rxd8 Rxd8 (25... Qxe1 $2 26. Nd3 $18) 26. Rxe6 $18) (24... Rd2 $1 $17 25. Qxe6+ Kh7) 25. Rxd1 $11 {[%emt 0:00:02] The position is equal.} Qc7 {[%emt 0:00:01][%cal Of8f7] and ...Rf7! should not be overlooked} 26. Qxe6+ {[%emt 0:00:14]} Kh7 {[%emt 0:00:02]} 27. Ne4 {[%emt 0:01:35] And now Rd7 would win. Active counter play!} Qxc2 {[%emt 0:00:53]} (27... Bxb2 $2 {perishes.} 28. Rd7+ $18) 28. Rd6 {[%emt 0:00:31]} Qxb2 {[%emt 0:00:14]} 29. Qxg6+ {[%emt 0:00:01]} Kh8 {[%emt 0:00:01]} 30. Rd7 {[%emt 0:00:04]} b6 {[%emt 0:00:44]} 31. Rb7 {[%emt 0:00:27]} a5 {[%emt 0:00:00][%cal Ob6b5]} 32. a4 {[%emt 0:00:07]} Qd4 {[%emt 0:00:01]} 33. Re7 {[%emt 0:00:03]} Qb2 {[%emt 0:00:11]} 34. Rb7 {[%emt 0:00:29]} Qd4 {[%emt 0:00:01]} 35. Re7 {[%emt 0:00:24]} Qb2 {[%emt 0:00:08]} 36. Re6 {[%emt 0:00:03]} Qd4 {[%emt 0:00:03]} 37. Re7 {[%emt 0:00:01] Weighted Error Value: White=0.16 (very precise) /Black=0.14 (very precise)   Mistake:       	White=3     	Black=4      Inaccurate:     	White=2     	Black=1      OK:         	White=14    	Black=8      Best:        	White=1     	Black=1} 1/2-1/2

[Event "CCT Chessable Masters Playoffs 2025"]
[Site "Online"]
[Date "2025.02.18"]
[Round "1"]
[White "Carlsen, Magnus"]
[Black "Esipenko, Andrey"]
[Result "1-0"]
[Annotator "ChessBase"]
[ECO "B13"]
[WhiteElo "2833"]
[BlackElo "2695"]
[PlyCount "97"]
[EventDate "2025.02.13"]
[EventType "k.o."]
[EventCountry "NET"]
[SourceTitle "playchess.com"]
[Source "ChessBase"]
[SourceQuality "1"]
[TimeControl "600"]

1. d4 {[%emt 0:00:02]} Nf6 {[%emt 0:00:05]} 2. Nc3 {[%emt 0:00:01]} d5 {[%emt 0:00:02]} 3. Bf4 {[%emt 0:00:02]} c5 {[%emt 0:00:03]} 4. e3 {[%emt 0:00:01]} cxd4 {[%emt 0:00:09]} 5. exd4 {[%emt 0:00:00]} a6 {[%emt 0:00:09]} 6. Nf3 {[%emt 0:00:02]} Nc6 {[%emt 0:00:00]} 7. Ne5 {[%emt 0:00:01]} Bd7 {[%emt 0:00:03]} 8. Ne2 {[%emt 0:00:09]} e6 {[%emt 0:00:19]} 9. c3 {[%emt 0:00:01]} Nxe5 {[%emt 0:00:36]} 10. dxe5 {[%emt 0:00:02]} Ne4 {[%emt 0:00:01]} 11. f3 {[%emt 0:00:05]} Nc5 {[%emt 0:00:13]} 12. Nd4 {[%emt 0:00:01]} Qb6 {[%emt 0:00:10]} 13. Qd2 {[%emt 0:00:03]} Rc8 {[%emt 0:00:03]} 14. Rc1 {[%emt 0:00:43]} Be7 {[%emt 0:00:06]} 15. Be2 {[%emt 0:00:02]} O-O {[%emt 0:00:33]} 16. O-O {[%emt 0:00:02]} f6 {[%emt 0:00:30]} 17. Rc2 {[%emt 0:00:32]} Be8 {[%emt 0:00:16]} 18. Qe3 {[%emt 0:00:05]} Bg6 {[%emt 0:00:11]} 19. Rd2 {[%emt 0:00:04]} fxe5 {[%emt 0:01:15]} 20. Bxe5 {[%emt 0:00:02]} Rce8 {[%emt 0:00:22]} 21. Nb3 {[%emt 0:01:31]} Qc6 {[%emt 0:00:01]} 22. Nxc5 {[%emt 0:00:09]} Bxc5 {[%emt 0:00:02]} 23. Bd4 {[%emt 0:00:01]} Bxd4 {[%emt 0:00:30]} 24. Qxd4 {[%emt 0:00:01]} Qc7 {[%emt 0:00:18]} 25. g3 {[%emt 0:00:14]} e5 {[%emt 0:00:26]} 26. Qxd5+ {[%emt 0:00:04]} Bf7 {[%emt 0:00:00]} 27. Qd6 {[%emt 0:00:05]} Qxd6 {[%emt 0:00:07]} 28. Rxd6 {[%emt 0:00:00]} Bxa2 {[%emt 0:00:01]} 29. Rfd1 {[%emt 0:00:12]} Rf7 {[%emt 0:00:21]} 30. Kf2 {[%emt 0:00:12]} Kf8 {[%emt 0:00:13]} 31. Ke3 {[%emt 0:00:02]} Bb3 {[%emt 0:00:05]} 32. R1d2 {[%emt 0:00:03]} Ba4 {[%emt 0:00:32]} 33. Bd3 {[%emt 0:00:08]} Bc6 {[%emt 0:00:02]} 34. Be4 {[%emt 0:00:03]} Bxe4 {[%emt 0:00:00]} 35. Kxe4 {[%emt 0:00:00]} g6 {[%emt 0:00:20]} 36. Rd7 {[%emt 0:00:09]} Ree7 {[%emt 0:00:05]} 37. Rxe7 {[%emt 0:00:03]} Rxe7 {[%emt 0:00:00]} 38. Rd6 {[%emt 0:00:06]} Kf7 {[%emt 0:00:06]} 39. g4 {[%emt 0:00:08]} Kg7 {[%emt 0:00:04]} 40. g5 {[%emt 0:00:02]} h6 {[%emt 0:00:05]} 41. h4 {[%emt 0:00:01]} hxg5 {[%emt 0:00:01]} 42. hxg5 {[%emt 0:00:00]} Rf7 {[%emt 0:00:01]} 43. Rb6 {[%emt 0:00:04]} Re7 {[%emt 0:00:04]} 44. c4 {[%emt 0:00:03]} Kf7 {[%emt 0:00:10]} 45. c5 {[%emt 0:00:03]} Rc7 {[%emt 0:00:03]} 46. Kd5 {[%emt 0:00:15]} Re7 {[%emt 0:00:06]} 47. b4 {[%emt 0:00:04]} Kg7 {[%emt 0:00:01]} 48. Re6 {[%emt 0:00:09]} Rf7 {[%emt 0:00:07]} 49. Kxe5 {[%emt 0:00:06]} 1-0

[Event "CCT Chessable Masters Playoffs 2025"]
[Site "Online"]
[Date "2025.02.18"]
[Round "1"]
[White "Caruana, Fabiano"]
[Black "Sevian, Samuel"]
[Result "1-0"]
[Annotator "TA"]
[ECO "C47"]
[WhiteElo "2803"]
[BlackElo "2692"]
[PlyCount "87"]
[EventDate "2025.02.13"]
[EventType "k.o."]
[EventCountry "NET"]
[SourceTitle "playchess.com"]
[Source "ChessBase"]
[SourceQuality "1"]
[TimeControl "600"]

{[%evp 9,87,3,10,14,15,13,20,12,14,10,25,-20,-7,-51,-49,-30,-7,-8,14,39,37,-51,0,-10,0,0,13,-27,-30,-22,0,-14,-15,-8,-10,0,20,16,22,47,100,120,125,118,122,131,131,96,85,0,0,0,0,0,0,0,0,0,0,0,0,0,0,0,0,0,0,0,0,0,0,0,0,0,669,552,29979,29980,29995,29996]} 1. e4 {[%emt 0:00:01]} e5 {[%emt 0:00:02]} 2. Nf3 {[%emt 0:00:00]} Nc6 {[%emt 0:00:00]} 3. Nc3 {[%emt 0:00:01]} Nf6 {[%emt 0:00:01]} 4. h3 {[%emt 0:00:01]} d5 {[%emt 0:00:35]} 5. exd5 {[%emt 0:00:01]} Nxd5 {[%emt 0:00:01]} 6. Bb5 {[%emt 0:00:01] C47: Scotch Four Knights and Four Knights with 4 g3.} Nxc3 {[%emt 0:00:03]} 7. bxc3 {[%emt 0:00:01]} Bd6 {[%emt 0:00:01]} 8. O-O {[%emt 0:00:01] The position is equal.} O-O {[%emt 0:00:00]} 9. d4 {[%emt 0:00:01]} Bd7 {[%emt 0:00:14][%cal Oc6d4]} 10. Bg5 $5 {[%emt 0:00:30][%mdl 4] Exploring less charted territory.} Qe8 {[%emt 0:01:06]} 11. Bc4 $146 {[%emt 0:01:33]} (11. Re1 f6 12. Bh4 Nxd4 13. Nxd4 Bxb5 14. Nf5 Qg6 15. Nxd6 cxd6 16. Qxd6 Bc6 17. Bg3 Qxc2 {½-½ Kilic,E (2429)-Kvaloy,A (2450) Titled Tuesday intern op 23rd Apr Early blitz 2024 (9)}) 11... e4 {[%emt 0:00:59]} 12. Nd2 {[%emt 0:00:22]} Kh8 {[%emt 0:00:08]} 13. f3 {[%emt 0:00:19]} f5 {[%emt 0:00:40]} 14. fxe4 {[%emt 0:00:24]} Qg6 {[%emt 0:00:01] Dodges e5} 15. e5 {[%emt 0:00:01]} (15. Bf4 $14 fxe4 16. Bxd6 Bxh3 (16... cxd6 17. Qe2 $11) 17. Rxf8+ Rxf8 18. Qe2 Qxd6 (18... cxd6 19. Rf1 $14) 19. Nxe4) 15... Nxe5 {[%emt 0:00:04]} 16. dxe5 {[%emt 0:00:36]} Bc5+ {[%emt 0:00:02]} 17. Kh1 {[%emt 0:00:01]} Qxg5 {[%emt 0:00:01]} 18. Nf3 {[%emt 0:00:00][%csl LRd7,LRg5]} (18. Nb3 $5 Bc6 19. Bd5 $16) 18... Qe7 {[%emt 0:00:01]} 19. e6 {[%emt 0:00:04]} Be8 {[%emt 0:01:49]} 20. Ne5 {[%emt 0:00:09]} Bd6 {[%emt 0:00:01] This pair of bishops is nice.} 21. Qe2 {[%emt 0:00:11]} Qh4 {[%emt 0:00:01] Threatens to win with ...Bxe5.} 22. Bd5 {[%emt 0:00:25]} Qg3 {[%emt 0:00:49]} 23. Rae1 {[%emt 0:00:03] Active counter play!} Qxc3 {[%emt 0:00:20]} (23... c6 {is interesting.} 24. Bb3 Bh5 25. Qe3 f4) 24. Rf3 {[%emt 0:00:24]} Qa5 {[%emt 0:00:31]} (24... Qd4 $14 25. Rd3 (25. Bxb7 Rb8 $18) 25... Qh4) 25. Bxb7 $16 {[%emt 0:00:52]} Rb8 {[%emt 0:00:37]} 26. Nc4 {[%emt 0:00:01]} Qc5 {[%emt 0:00:14]} 27. Nxd6 {[%emt 0:00:02]} cxd6 {[%emt 0:00:09]} 28. e7 {[%emt 0:00:24]} Rg8 {[%emt 0:00:14] [#]} 29. Qe6 {[%emt 0:00:08]} Rxb7 $11 {[%emt 0:00:21]} 30. Rxf5 {[%emt 0:00:02] Intending Qxg8+ and mate.} Rxe7 $1 {[%emt 0:00:01]} 31. Qxe7 {[%emt 0:00:12]} Qxf5 {[%emt 0:00:01]} 32. Qxe8 {[%emt 0:00:01]} Qxc2 {[%emt 0:00:00][%mdl 4096] Endgame KQR-KQR. Black is a pawn up.} 33. Qf7 {[%emt 0:00:05][%cal Oe1e8]} h6 {[%emt 0:00:04]} 34. Qxa7 {[%emt 0:00:05]} d5 {[%emt 0:00:00]} 35. a4 {[%emt 0:00:04][%cal Ba2a4,Ba4a5][%mdl 32]} Qc3 {[%emt 0:00:01]} 36. Rd1 {[%emt 0:00:02]} Rd8 {[%emt 0:00:01]} 37. a5 {[%emt 0:00:06][%cal Od1d5]} d4 {[%emt 0:00:02]} 38. Qb6 {[%emt 0:00:01]} Ra8 {[%emt 0:00:00]} 39. a6 {[%emt 0:00:19][%cal Oa6a7]} Qa3 {[%emt 0:00:20]} 40. Rxd4 {[%emt 0:00:03]} Qa1+ {[%emt 0:00:09]} 41. Kh2 {[%emt 0:00:02][%cal Ob6c6]} Qxa6 $2 {[%emt 0:00:00][%mdl 8192]} (41... Kh7 $11) 42. Rd8+ $18 {[%emt 0:00:04]} Kh7 {[%emt 0:00:01]} 43. Qb1+ {[%emt 0:00:01]} g6 {[%emt 0:00:03]} 44. Rd7+ {[%emt 0:00:01] Weighted Error Value: White=0.12 (very precise) /Black=0.33  Loses game:     	---       	Black=1      Mistake:       	White=2     	Black=1      Inaccurate:     	White=3     	Black=2      OK:         	White=15    	Black=19     Best:        	White=7     	Black=2      Strong:       	---       	Black=1} 1-0

[Event "CCT Chessable Masters Playoffs 2025"]
[Site "Online"]
[Date "2025.02.18"]
[Round "1"]
[White "Nakamura, Hikaru"]
[Black "Grischuk, Alexander"]
[Result "1-0"]
[Annotator "TA"]
[ECO "A01"]
[WhiteElo "2802"]
[BlackElo "2687"]
[PlyCount "95"]
[EventDate "2025.02.13"]
[EventType "k.o."]
[EventCountry "NET"]
[SourceTitle "playchess.com"]
[Source "ChessBase"]
[SourceQuality "1"]
[TimeControl "600"]

{[%evp 9,94,-32,-29,-37,-22,-27,-31,-39,-42,-61,-42,-31,-33,-46,-43,-37,0,0,0,-33,-16,-39,-33,-56,-43,-52,-52,-40,-45,-95,-90,-90,-82,-67,-53,-73,-66,-59,-31,-43,-16,-69,-38,-147,-81,-87,-71,-137,-92,-230,-227,-229,-225,-233,-226,-218,-194,-273,-261,-243,-256,-338,-352,-364,-326,-351,-344,-351,-310,-350,-276,-334,-256,-331,-256,-256,-179,-182,75,61,77,0,0,0,78,80,29999]} 1. b3 {[%emt 0:00:00]} d5 {[%emt 0:00:03]} 2. Bb2 {[%emt 0:00:01]} Nf6 {[%emt 0:00:00]} 3. d3 {[%emt 0:00:03]} c5 {[%emt 0:00:09]} 4. Nd2 {[%emt 0:00:05]} Nc6 {[%emt 0:00:02]} 5. Ngf3 {[%emt 0:00:02]} Qc7 {[%emt 0:00:57]} 6. e4 {[%emt 0:00:02] A01: Nimzowitsch-Larsen Opening.} d4 $146 {[%emt 0:00:01]} (6... e6 7. Qe2 d4 8. g3 Nb4 9. Qd1 b6 10. c3 dxc3 11. Bxc3 Ba6 12. Nc4 Rd8 13. Bxf6 gxf6 {0-1 Candarle,D (1630)-Ledesma,I (1879) Gualeguaychu Baggio Cup 2019 (3)}) 7. c3 {[%emt 0:00:08]} e5 {[%emt 0:00:02]} 8. cxd4 {[%emt 0:00:01] Black is slightly better.} cxd4 {[%emt 0:00:11]} 9. Rc1 {[%emt 0:00:03]} Bd6 {[%emt 0:00:08]} 10. Be2 {[%emt 0:00:03]} O-O {[%emt 0:00:08]} 11. O-O {[%emt 0:00:01]} Qe7 {[%emt 0:00:54]} 12. Nc4 {[%emt 0:00:28]} Be6 {[%emt 0:00:41]} (12... Bc5 $5) 13. Nxd6 {[%emt 0:00:51]} Qxd6 {[%emt 0:00:00]} 14. Qc2 {[%emt 0:00:01]} Rfc8 {[%emt 0:00:16]} 15. Nd2 {[%emt 0:00:57]} b5 {[%emt 0:01:00]} 16. Qb1 {[%emt 0:00:23]} h6 {[%emt 0:00:18]} 17. Rc2 {[%emt 0:00:10]} Nb4 {[%emt 0:00:39]} 18. Rxc8+ {[%emt 0:00:02]} Rxc8 {[%emt 0:00:01]} 19. Rc1 {[%emt 0:00:03]} ({Better is} 19. a3 $15) 19... Rxc1+ $17 {[%emt 0:00:05]} 20. Bxc1 {[%emt 0:00:00]} Qc5 {[%emt 0:00:10][%cal Ob4a2]} 21. Ba3 {[%emt 0:00:51]} a5 {[%emt 0:00:10]} 22. Nf3 {[%emt 0:00:01]} Nd7 {[%emt 0:00:06]} 23. Ne1 {[%emt 0:00:09]} Qc3 {[%emt 0:00:23][%cal Ob4a2] and ...Nxa2! should not be overlooked} 24. Bb2 {[%emt 0:00:10]} Qc7 {[%emt 0:00:10] Space Advantage Black} 25. h4 {[%emt 0:00:37]} (25. f4 $11) 25... Nc5 {[%emt 0:00:37]} 26. Ba3 {[%emt 0:00:04]} (26. f4 $15) 26... Nba6 {[%emt 0:00:05]} (26... Nxa2 $1 27. Qxa2 b4 (27... Bxb3 28. Qd2 $17) (27... Nxb3 28. Bg4 $15) 28. Bxb4 axb4) 27. Bc1 {[%emt 0:00:05][%cal Of2f4]} b4 {[%emt 0:00:04]} 28. Bd2 {[%emt 0:00:30]} (28. f4 $142) 28... Qd6 {[%emt 0:00:06]} 29. h5 {[%emt 0:01:00]} (29. Qc2 $17) 29... Nc7 $1 $19 {[%emt 0:00:02][%cal Ba6c7,Bc7b5,Bb5c3][%mdl 32]} 30. f4 {[%emt 0:00:01]} exf4 {[%emt 0:00:16]} 31. Qc1 {[%emt 0:00:04]} Nb5 {[%emt 0:00:02]} 32. Bxf4 {[%emt 0:00:01]} Qb6 {[%emt 0:00:07]} 33. Bxh6 {[%emt 0:00:43]} (33. Bf3 {was worth a try.}) 33... gxh6 {[%emt 0:00:20]} 34. Qxh6 {[%emt 0:00:00]} Qd8 {[%emt 0:00:05] Inhibits Qg5+.} 35. Nf3 {[%emt 0:00:03]} Nc3 {[%emt 0:00:21][%csl LRa2,LRe2]} 36. Bf1 {[%emt 0:00:03]} Nd7 {[%emt 0:00:07]} (36... Nxa2 37. Ng5 a4 (37... Bxb3 $2 38. Qh7+ Kf8 39. Qh8+ Ke7 40. Qxd8+ Kxd8 41. h6 $18) 38. Qh7+ Kf8 39. Qh8+ Ke7 40. Qxd8+ Kxd8 41. h6 axb3 42. h7 $11) 37. e5 {[%emt 0:00:01]} Qf8 {[%emt 0:00:06]} (37... Nxa2 38. Ng5 Nf8 (38... Bxb3 39. Qh7+ Kf8 40. e6 $17) 39. Ne4 $19) 38. Qg5+ {[%emt 0:00:21]} Kh8 {[%emt 0:00:00]} 39. Qf4 {[%emt 0:00:09]} (39. Nxd4 $2 Qc5 (39... Nxa2 40. Nxe6 fxe6 41. d4 $11) 40. Qh6+ Kg8 $19) 39... Qg7 {[%emt 0:00:08]} 40. Nxd4 {[%emt 0:00:22]} Qxe5 {[%emt 0:00:06]} 41. Qh6+ {[%emt 0:00:01]} Kg8 {[%emt 0:00:02]} 42. Nc6 {[%emt 0:00:04][%cal Rc6e7]} Qc5+ {[%emt 0:00:13]} 43. d4 {[%emt 0:00:01] [#]} Qxc6 {[%emt 0:00:01]} ({Black should try} 43... Qf8 $1 $19 {[%cal Rf8h6]} 44. Qe3 Nf6 (44... Nxa2 45. d5 $14)) 44. Qg5+ $16 {[%emt 0:00:00]} Kf8 {[%emt 0:00:02]} 45. Qd8+ {[%emt 0:00:07][%mdl 1024] White has strong compensation.} (45. h6 $5 Ne5 (45... Nxa2 46. Qd8#) (45... Qb6 46. Qg7+ Ke7 47. h7 $16) 46. Qg7+ Ke7 47. Qxe5 $16) 45... Kg7 {[%emt 0:00:01]} 46. Qg5+ {[%emt 0:00:00]} Kf8 $1 {[%emt 0:00:01] [#]} 47. h6 $1 {[%emt 0:00:01][%cal Rg5d8]} Qe4 $2 {[%emt 0:00:04][%mdl 8192]} ({And not} 47... Nxa2 48. Qd8#) (47... Qb6 $16 48. Qg7+ Ke7) 48. Qd8# {[%emt 0:00:02] Weighted Error Value: White=0.23 (precise) /Black=0.36  Loses game:     	---       	Black=1      Missed win:     	---       	Black=1      Mistake:       	White=6     	Black=1      Inaccurate:     	White=2     	Black=7      OK:         	White=15    	Black=13     Best:        	White=3     	Black=3      Strong:       	White=1     	Black=1} 1-0

[Event "CCT Chessable Masters Playoffs 2025"]
[Site "Online"]
[Date "2025.02.18"]
[Round "1"]
[White "Erigaisi Arjun"]
[Black "Artemiev, Vladislav"]
[Result "1-0"]
[Annotator "TA"]
[ECO "B15"]
[WhiteElo "2801"]
[BlackElo "2691"]
[PlyCount "67"]
[EventDate "2025.02.13"]
[EventType "k.o."]
[EventCountry "NET"]
[SourceTitle "playchess.com"]
[Source "ChessBase"]
[SourceQuality "1"]
[TimeControl "600"]

{[%evp 9,67,8,34,0,0,-12,16,8,12,23,33,25,29,15,20,0,37,-138,-137,-237,-41,-20,-25,-33,-22,-26,-21,-116,-106,-120,-104,-63,-77,-150,-41,-45,-45,-77,-19,-34,0,-35,-37,-35,-26,-39,-36,-22,122,127,133,126,226,216,702,692,756,763,701,682]} 1. e4 {[%emt 0:00:00]} c6 {[%emt 0:00:01]} 2. d4 {[%emt 0:00:02]} d5 {[%emt 0:00:00]} 3. f3 {[%emt 0:00:00]} g6 {[%emt 0:00:01]} 4. Nc3 {[%emt 0:00:02]} Bg7 {[%emt 0:00:01]} 5. Be3 {[%emt 0:00:01]} Qb6 {[%emt 0:00:07]} 6. Na4 {[%emt 0:00:25] B15: Caro-Kann: 3 Nc3: 3...g6 and 3...dxe4 4 Nxe4 Nf6 5 Nxf6+ exf6.} Qa5+ {[%emt 0:00:04]} 7. c3 {[%emt 0:00:00]} Nd7 {[%emt 0:00:24]} 8. b4 {[%emt 0:00:02] The position is equal.} Qc7 {[%emt 0:00:03]} 9. e5 {[%emt 0:00:10]} f6 {[%emt 0:00:16]} 10. f4 {[%emt 0:00:22]} Nh6 {[%emt 0:00:06][%cal Rf6e5]} 11. Nf3 {[%emt 0:00:01]} O-O {[%emt 0:00:53]} 12. Bd3 $5 $146 {[%emt 0:00:07][%mdl 8] New and interesting.} (12. Be2 a5 13. a3 Nb6 14. Nb2 Bg4 15. O-O Kh8 16. Qd2 axb4 17. axb4 Rxa1 18. Rxa1 {½-½ Fedoseev,V (2674)-Rozum,I (2566) Titled Tuesday intern op 13th Oct blitz 2020 (3)}) 12... a5 {[%emt 0:00:20][%cal Rf6e5]} (12... Ng4 $5 13. Bd2 fxe5 14. fxe5 Ndxe5 15. dxe5 Nxe5 16. Nxe5 Qxe5+ 17. Qe2 Qd6 $11) 13. O-O $2 {[%emt 0:00:50]} (13. b5 $1 $14 {keeps the upper hand.}) 13... axb4 $1 $17 {[%emt 0:00:31][%cal Rf6e5]} 14. cxb4 {[%emt 0:00:00]} (14. Bd2 $17) 14... b5 $2 {[%emt 0:00:01]} (14... Ng4 $19 15. Bc1 fxe5) 15. Nc5 $15 {[%emt 0:00:02]} Nxc5 {[%emt 0:00:16]} 16. bxc5 {[%emt 0:00:11]} Bf5 {[%emt 0:02:13]} 17. Bxf5 {[%emt 0:00:02]} Nxf5 {[%emt 0:00:02]} 18. Bf2 {[%emt 0:00:01]} (18. Qd3 $11) 18... Ra3 $1 $17 {[%emt 0:00:03]} 19. Qe2 {[%emt 0:00:09]} Rfa8 {[%emt 0:00:38] Black has strong rooks and is better} 20. g4 {[%emt 0:00:23]} Nh6 {[%emt 0:00:04]} 21. h3 {[%emt 0:00:03]} ({White should try} 21. Be3) 21... b4 {[%emt 0:00:30]} (21... f5 $17 22. g5 Nf7) 22. Rab1 $15 {[%emt 0:00:45]} Rxa2 {[%emt 0:00:10]} 23. Qd1 {[%emt 0:00:01]} Rb8 {[%emt 0:00:20]} ({Better is} 23... Qc8 $17 {[%cal Oh6g4] ...Nxg4! would now be deadly.} 24. Ne1 R2a3) 24. Be1 $11 {[%emt 0:00:10][%cal Bf2e1,Be1b4,Bb4d2,Bd2f4,Bf4g3][%mdl 32]} Nf7 {[%emt 0:00:08]} 25. Bxb4 {[%emt 0:00:12]} g5 {[%emt 0:00:02]} 26. Bd2 {[%emt 0:00:19]} gxf4 {[%emt 0:00:24][%cal Rf6e5]} 27. Bxf4 {[%emt 0:00:02]} fxe5 {[%emt 0:00:13]} 28. dxe5 {[%emt 0:00:02]} Nxe5 {[%emt 0:00:24] [#]} (28... e6 $11) 29. Kh1 $1 $16 {[%emt 0:00:56]} Rf8 {[%emt 0:00:13] [#]} 30. Bg3 {[%emt 0:00:41]} e6 {[%emt 0:00:36]} (30... Ra3 $16) 31. Qb3 $18 {[%emt 0:00:34]} Qa5 {[%emt 0:00:29]} (31... Raa8 32. Rbe1 (32. Qe3 Nc4 $15) 32... Rxf3 33. Rxf3 Qa5) 32. Nxe5 {[%emt 0:00:34] and Rxf8+ would now be decisive. White is clearly winning.} Ra3 {[%emt 0:00:07]} 33. Rxf8+ {[%emt 0:00:01]} Bxf8 {[%emt 0:00:06] [#]} 34. Qb7 $1 {[%emt 0:00:00] White used his chance.   Weighted Error Value: White=0.25 (precise) /Black=0.57  Missed win:     	---       	Black=1      Mistake:       	White=4     	Black=5      Inaccurate:     	White=2     	Black=3      OK:         	White=9     	Black=8      Best:        	White=2     	Black=1      Strong:       	White=1     	Black=2} 1-0